fUSD/lending_fUSD_20241121
["ID","MTS","AMOUNT","RATE_DAILY","PERIOD"]
[342873914,1732191072258,-500.0,0.00041643,18]
[342873915,1732191072267,-500.0,0.00041643,18]
[342873916,1732191072277,-964.63,0.00041643,18]
[342873917,1732191072286,-500.0,0.00041643,18]
[342873918,1732191072295,-511.19,0.00041643,18]
[342873919,1732191072304,-500.0,0.00041643,18]
[342873920,1732191072316,-3814.88,0.00041643,18]
[342873921,1732191072326,-500.0,0.00041643,18]
[342873922,1732191072334,-522.87,0.00041643,18]
[342873923,1732191072343,-500.0,0.00041643,18]
[342873924,1732191072353,-735.78,0.00041643,18]
[342873925,1732191072362,-500.0,0.00041643,18]
[342873926,1732191072371,-627.27,0.00041643,18]
[342873927,1732191072380,-920.01,0.00041643,18]
[342873928,1732191072389,-500.0,0.00041643,18]
[342873929,1732191072398,-599.89,0.00041643,18]
[342873930,1732191072407,-500.0,0.00041643,18]
[342873931,1732191072415,-928.61,0.00041643,18]
[342873932,1732191072424,-612.04,0.00041643,18]
[342873933,1732191072432,-500.0,0.00041643,18]
[342873934,1732191072442,-500.0,0.00041643,18]
[342873935,1732191072451,-509.02,0.00041643,18]
[342873936,1732191072460,-1132.05,0.00041643,18]
[342873937,1732191072469,-1695.31,0.00041643,18]
[342873938,1732191072478,-966.51,0.00041643,18]
[342873939,1732191072487,-599.85,0.00041643,18]
[342873940,1732191072496,-500.0,0.00041643,18]
[342873941,1732191072505,-500.0,0.00041643,18]
[342873942,1732191072514,-4036.02,0.00041643,18]
[342873943,1732191072523,-500.0,0.00041643,18]
[342873944,1732191072532,-500.0,0.00041643,18]
[342873945,1732191072541,-675.03,0.00041643,18]
[342873946,1732191072550,-500.0,0.00041643,18]
[342873947,1732191072559,-500.0,0.00041643,18]
[342873948,1732191072568,-500.0,0.00041643,18]
[342873949,1732191072578,-871.28,0.00041643,18]
[342873950,1732191072587,-500.0,0.00041643,18]
[342873951,1732191072597,-990.2,0.00041643,18]
[342873952,1732191072608,-500.0,0.00041643,18]
[342873953,1732191072617,-586.3,0.00041643,18]
[342873954,1732191072626,-275.87469582,0.00041643,18]
[342873955,1732191072635,-500.0,0.00041643,18]
[342873956,1732191072644,-985.51,0.00041643,18]
[342873957,1732191072654,-331.76688475,0.00041643,18]
[342873958,1732191072663,-500.0,0.00041643,18]
[342873959,1732191072672,-755.06,0.00041643,18]
[342873960,1732191072682,-500.0,0.00041643,18]
[342873961,1732191072692,-956.48,0.00041643,18]
[342873962,1732191072701,-864.39,0.00041643,18]
[342873963,1732191072710,-2053.95,0.00041643,18]
[342873964,1732191072720,-2647.96,0.00041643,18]
[342873965,1732191072729,-673.32,0.00041643,18]
[342873966,1732191072738,-500.0,0.00041643,18]
[342873967,1732191072747,-987.09,0.00041643,18]
[342873968,1732191072756,-1224.59,0.00041643,18]
[342873969,1732191072766,-568.31,0.00041643,18]
[342873970,1732191072776,-500.0,0.00041643,18]
[342873971,1732191072785,-931.96,0.00041643,18]
[342873972,1732191072794,-888.57,0.00041643,18]
[342873973,1732191072804,-500.0,0.00041643,18]
[342873974,1732191072814,-3336.09,0.00041643,18]
[342873975,1732191072830,-500.0,0.00041643,18]
[342873976,1732191072839,-1037.23,0.00041643,18]
[342873977,1732191072848,-671.17,0.00041643,18]
[342873978,1732191072860,-1790.53,0.00041643,18]
[342873979,1732191072869,-500.0,0.00041643,18]
[342873980,1732191072878,-1112.73,0.00041643,18]
[342873981,1732191072887,-500.0,0.00041643,18]
[342873982,1732191072897,-500.0,0.00041643,18]
[342873983,1732191072906,-500.0,0.00041643,18]
[342873984,1732191072915,-500.0,0.00041643,18]
[342873985,1732191072923,-500.0,0.00041643,18]
[342873986,1732191072933,-797.91,0.00041643,18]
[342873987,1732191072942,-602.51,0.00041643,18]
[342873988,1732191072951,-500.0,0.00041643,18]
[342873989,1732191072960,-500.0,0.00041643,18]
[342873990,1732191072970,-500.0,0.00041643,18]
[342873991,1732191072979,-500.0,0.00041643,18]
[342873992,1732191072989,-1931.79,0.00041643,18]
[342873993,1732191072999,-674.86,0.00041643,18]
[342873994,1732191073008,-1398.71,0.00041643,18]
[342873995,1732191073017,-629.42,0.00041643,18]
[342873996,1732191073027,-510.12,0.00041643,18]
[342873997,1732191073036,-500.0,0.00041643,18]
[342873998,1732191073046,-500.0,0.00041643,18]
[342873999,1732191073055,-500.0,0.00041643,18]
[342874000,1732191073064,-1345.63,0.00041643,18]
[342874001,1732191073074,-1023.16,0.00041643,18]
[342874002,1732191073084,-1000.0,0.00041643,18]
[342874003,1732191073093,-5477.54,0.00041643,18]
[342874004,1732191073102,-500.0,0.00041643,18]
[342874005,1732191073114,-500.0,0.00041643,18]
[342874006,1732191073123,-646.67,0.00041643,18]
[342874007,1732191073132,-1034.41,0.00041643,18]
[342874008,1732191073141,-500.0,0.00041643,18]
[342874009,1732191073151,-500.0,0.00041643,18]
[342874010,1732191073159,-500.0,0.00041643,18]
[342874011,1732191073169,-3350.27,0.00041643,18]
[342874012,1732191073179,-500.0,0.00041643,18]
[342874013,1732191073188,-500.0,0.00041643,18]
[342874014,1732191073197,-951.56,0.00041643,18]
[342874015,1732191073206,-1599.89,0.00041643,18]
[342874016,1732191073217,-500.0,0.00041643,18]
[342874017,1732191073226,-791.81,0.00041643,18]
[342874018,1732191073235,-500.0,0.00041643,18]
[342874019,1732191073244,-624.01,0.00041643,18]
[342874020,1732191073254,-500.0,0.00041643,18]
[342874021,1732191073263,-500.0,0.00041643,18]
[342874022,1732191073272,-2280.61,0.00041643,18]
[342874023,1732191073287,-500.0,0.00041643,18]
[342874024,1732191073297,-1385.12,0.00041643,18]
[342874025,1732191073306,-904.44,0.00041643,18]
[342874026,1732191073315,-1939.74,0.00041643,18]
[342874027,1732191073327,-1411.9,0.00041643,18]
[342874028,1732191073337,-500.0,0.00041643,18]
[342874029,1732191073346,-534.21,0.00041643,18]
[342874030,1732191073356,-500.0,0.00041643,18]
[342874031,1732191073367,-500.0,0.00041643,18]
[342874032,1732191073378,-54170.23,0.00041643,5]
[342874033,1732191073387,-507.95,0.00041643,18]
[342874034,1732191073400,-500.0,0.00041643,18]
[342874035,1732191073417,-3154.79,0.00041643,18]
[342874036,1732191073430,-551.18728242,0.00041643,18]
[342874037,1732191073442,-2457.28,0.00041643,18]
[342874038,1732191073452,-3395.77,0.00041643,18]
[342874039,1732191073462,-894.23,0.00041643,18]
[342874040,1732191073471,-500.0,0.00041643,18]
[342874041,1732191073482,-500.0,0.00041643,18]
[342874042,1732191073491,-500.0,0.00041643,18]
[342874043,1732191073500,-899.9,0.00041643,18]
[342874044,1732191073509,-1250.0,0.00041643,18]
[342874045,1732191073517,-500.0,0.00041643,18]
[342874046,1732191073527,-500.0,0.00041643,18]
[342874047,1732191073536,-1220.62,0.00041643,18]
[342874048,1732191073546,-500.0,0.00041643,18]
[342874049,1732191073554,-1505.36,0.00041643,18]
[342874050,1732191073563,-500.0,0.00041643,18]
[342874051,1732191073573,-500.0,0.00041643,18]
[342874052,1732191073582,-1052.65,0.00041643,18]
[342874053,1732191073591,-1308.23,0.00041643,18]
[342874054,1732191073600,-14798.35,0.00041643,18]
[342874055,1732191073613,-500.0,0.00041643,18]
[342874056,1732191073623,-585.17,0.00041643,18]
[342874057,1732191073632,-1214.68,0.00041643,18]
[342874058,1732191073641,-500.0,0.00041643,18]
[342874059,1732191073651,-500.0,0.00041643,18]
[342874060,1732191073660,-281.44,0.00041643,7]
[342874061,1732191073669,-500.0,0.00041643,18]
[342874062,1732191073678,-500.0,0.00041643,18]
[342874063,1732191073687,-2059.53,0.00041643,18]
[342874064,1732191073697,-500.0,0.00041643,18]
[342874065,1732191073705,-1406.26,0.00041643,18]
[342874066,1732191073714,-1663.99,0.00041643,18]
[342874067,1732191073723,-2134.17,0.00041643,18]
[342874068,1732191073732,-500.0,0.00041643,18]
[342874069,1732191073742,-1947.29,0.00041643,18]
[342874070,1732191073752,-500.0,0.00041643,18]
[342874071,1732191073762,-552.13,0.00041643,18]
[342874072,1732191073771,-2092.26,0.00041643,18]
[342874073,1732191073780,-3350.24,0.00041643,18]
[342874074,1732191073790,-524.8,0.00041643,18]
[342874075,1732191073799,-9945.17,0.00041643,18]
[342874076,1732191073809,-507.0,0.00041643,18]
[342874077,1732191073818,-500.0,0.00041643,18]
[342874078,1732191073827,-47253.13,0.00041643,18]
[342874079,1732191073836,-1295.33,0.00041643,18]
[342874080,1732191073845,-525.81,0.00041643,18]
[342874081,1732191073855,-926.88,0.00041643,18]
[342874082,1732191073864,-861.54,0.00041643,18]
[342874083,1732191073873,-500.0,0.00041643,18]
[342874084,1732191073882,-7223.51,0.00041643,18]
[342874085,1732191073892,-1922.86,0.00041643,18]
[342874086,1732191073900,-500.0,0.00041643,18]
[342874087,1732191073909,-2342.03,0.00041643,18]
[342874088,1732191073918,-3228.25,0.00041643,18]
[342874089,1732191073928,-500.0,0.00041643,18]
[342874090,1732191073939,-450.70262831,0.00041643,18]
[342874091,1732191073948,-500.0,0.00041643,18]
[342874092,1732191073957,-608.79,0.00041643,18]
[342874093,1732191073966,-599.94,0.00041643,18]
[342874094,1732191073977,-1462.98,0.00041643,18]
[342874095,1732191073988,-1423.15,0.00041643,18]
[342874096,1732191073997,-500.0,0.00041643,18]
[342874097,1732191074007,-500.0,0.00041643,18]
[342874098,1732191074016,-500.0,0.00041643,18]
[342874099,1732191074024,-1030.0,0.00041643,18]
[342874100,1732191074034,-5402.58,0.00041643,18]
[342874101,1732191074043,-500.0,0.00041643,18]
[342874102,1732191074053,-688.23,0.00041643,18]
[342874103,1732191074062,-505.96,0.00041643,18]
[342874104,1732191074071,-500.0,0.00041643,18]
[342874105,1732191074081,-2642.3,0.00041643,18]
[342874106,1732191074090,-500.0,0.00041643,18]
[342874107,1732191074100,-500.0,0.00041643,18]
[342874108,1732191074111,-811.93,0.00041643,18]
[342874109,1732191074119,-186.65022654,0.00041643,18]
[342874110,1732191074128,-1585.57,0.00041643,18]
[342874111,1732191074137,-500.0,0.00041643,18]
[342874112,1732191074147,-1261.49,0.00041643,18]
[342874113,1732191074155,-875.91,0.00041643,18]
[342874114,1732191074164,-553.57,0.00041643,18]
[342874115,1732191074173,-500.0,0.00041643,18]
[342874116,1732191074182,-934.75,0.00041643,18]
[342874117,1732191074192,-500.0,0.00041643,18]
[342874118,1732191074201,-1326.44,0.00041643,18]
[342874119,1732191074210,-918.0,0.00041643,18]
[342874120,1732191074219,-500.0,0.00041643,18]
[342874121,1732191074228,-1013.06,0.00041643,18]
[342874122,1732191074237,-1786.58,0.00041643,18]
[342874123,1732191074246,-1103.31,0.00041643,18]
[342874124,1732191074255,-506.12,0.00041643,18]
[342874125,1732191074264,-403.86693962,0.00041643,18]
[342874126,1732191074273,-500.0,0.00041643,18]
[342874127,1732191074290,-598.61,0.00041643,18]
[342874128,1732191074306,-2129.07,0.00041643,18]
[342874129,1732191074317,-500.0,0.00041643,18]
[342874130,1732191074327,-500.0,0.00041643,18]
[342874131,1732191074335,-500.0,0.00041643,18]
[342874132,1732191074344,-500.0,0.00041643,18]
[342874133,1732191074353,-3261.05,0.00041643,18]
[342874134,1732191074364,-500.0,0.00041643,18]
[342874135,1732191074373,-5158.19,0.00041643,18]
[342874136,1732191074382,-1352.8,0.00041643,18]
[342874137,1732191074391,-1136.22,0.00041643,18]
[342874138,1732191074401,-593.86,0.00041643,18]
[342874139,1732191074410,-1493.18,0.00041643,18]
[342874140,1732191074418,-567.35,0.00041643,18]
[342874141,1732191074427,-500.0,0.00041643,18]
[342874142,1732191074437,-551.45168686,0.00041643,18]
[342874143,1732191074446,-500.0,0.00041643,18]
[342874144,1732191074455,-500.0,0.00041643,18]
[342874145,1732191074465,-1351.96,0.00041643,18]
[342874146,1732191074474,-1147.31,0.00041643,18]
[342874147,1732191074483,-500.0,0.00041643,18]
[342874148,1732191074493,-500.0,0.00041643,18]
[342874149,1732191074502,-500.0,0.00041643,18]
[342874150,1732191074511,-500.0,0.00041643,18]
[342874151,1732191074521,-500.0,0.00041643,18]
[342874152,1732191074530,-773.85,0.00041643,18]
[342874153,1732191074539,-1199.73,0.00041643,18]
[342874154,1732191074548,-500.0,0.00041643,18]
[342874155,1732191074558,-2351.77,0.00041643,18]
[342874156,1732191074567,-1793.0,0.00041643,18]
[342874157,1732191074577,-858.69,0.00041643,18]
[342874158,1732191074586,-545.3,0.00041643,18]
[342874159,1732191074596,-500.0,0.00041643,18]
[342874160,1732191074605,-1052.15,0.00041643,18]
[342874161,1732191074616,-798.38,0.00041643,18]
[342874162,1732191074625,-500.0,0.00041643,18]
[342874163,1732191074635,-500.0,0.00041643,18]
[342874164,1732191074645,-553.4,0.00041643,18]
[342874165,1732191074654,-657.68,0.00041643,18]
[342874166,1732191074664,-500.0,0.00041643,18]
[342874167,1732191074674,-1089.06,0.00041643,18]
[342874168,1732191074683,-2885.1,0.00041643,18]
[342874169,1732191074692,-1049.96,0.00041643,18]
[342874170,1732191074702,-919.52,0.00041643,18]
[342874171,1732191074711,-681.87,0.00041643,18]
[342874172,1732191074720,-617.73,0.00041643,18]
[342874173,1732191074730,-500.0,0.00041643,18]
[342874174,1732191074738,-2805.64,0.00041643,18]
[342874175,1732191074748,-1232.85,0.00041643,18]
[342874176,1732191074757,-500.0,0.00041643,18]
[342874177,1732191074767,-174.68082697,0.00041643,18]
[342874178,1732191074776,-3409.36,0.00041643,18]
[342874179,1732191074786,-627.86,0.00041643,18]
[342874180,1732191074796,-1585.7,0.00041643,18]
[342874181,1732191074805,-1005.04,0.00041643,18]
[342874182,1732191074814,-500.0,0.00041643,18]
[342874183,1732191074824,-7862.91,0.00041643,18]
[342874184,1732191074833,-500.0,0.00041643,18]
[342874185,1732191074842,-542.65,0.00041643,18]
[342874186,1732191074851,-1771.73,0.00041643,18]
[342874187,1732191074862,-500.0,0.00041643,18]
[342874188,1732191074872,-4270.9,0.00041643,18]
[342874189,1732191074881,-500.0,0.00041643,18]
[342874190,1732191074890,-1246.17,0.00041643,18]
[342874191,1732191074899,-1493.62,0.00041643,18]
[342874192,1732191074909,-1470.35,0.00041643,18]
[342874193,1732191074918,-884.87,0.00041643,18]
[342874194,1732191074927,-858.23,0.00041643,18]
[342874195,1732191074937,-658.39,0.00041643,18]
[342874196,1732191074947,-2000.0,0.00041643,30]
[342874197,1732191074957,-500.0,0.00041643,18]
[342874198,1732191074966,-500.0,0.00041643,18]
[342874199,1732191075099,-1081.78,0.00041643,18]
[342874200,1732191075110,-500.0,0.00041643,18]
[342874201,1732191075119,-500.0,0.00041643,18]
[342874202,1732191075128,-1274.32,0.00041643,18]
[342874203,1732191075138,-500.0,0.00041643,18]
[342874204,1732191075147,-552.35,0.00041643,18]
[342874205,1732191075157,-500.0,0.00041643,18]
[342874206,1732191075166,-500.0,0.00041643,18]
[342874207,1732191075175,-500.0,0.00041643,18]
[342874208,1732191075185,-151.0,0.00041643,14]
[342874209,1732191075194,-151.0,0.00041643,14]
[342874210,1732191075204,-500.0,0.00041643,18]
[342874211,1732191075214,-1089.06,0.00041643,18]
[342874212,1732191075223,-500.0,0.00041643,18]
[342874213,1732191075233,-1466.43,0.00041643,18]
[342874214,1732191075242,-500.0,0.00041643,18]
[342874215,1732191075252,-500.0,0.00041643,18]
[342874216,1732191075262,-3365.8,0.00041643,18]
[342874217,1732191075271,-500.0,0.00041643,18]
[342874218,1732191075283,-3585.25,0.00041643,18]
[342874219,1732191075292,-858.17,0.00041643,18]
[342874220,1732191075302,-500.0,0.00041643,18]
[342874221,1732191075314,-1748.97,0.00041643,18]
[342874222,1732191075325,-500.0,0.00041643,18]
[342874223,1732191075334,-1564.38,0.00041643,18]
[342874224,1732191075344,-500.0,0.00041643,18]
[342874225,1732191075353,-500.0,0.00041643,18]
[342874226,1732191075366,-657.23,0.00041643,18]
[342874227,1732191075375,-1071.71,0.00041643,18]
[342874228,1732191075386,-1890.95,0.00041643,18]
[342874229,1732191075397,-500.0,0.00041643,18]
[342874230,1732191075407,-896.89,0.00041643,18]
[342874231,1732191075417,-500.0,0.00041643,18]
[342874232,1732191075426,-1500.0,0.00041643,120]
[342874233,1732191075436,-1353.47,0.00041643,18]
[342874234,1732191075446,-565.65,0.00041643,18]
[342874235,1732191075455,-500.0,0.00041643,18]
[342874236,1732191075465,-1702.36,0.00041643,18]
[342874237,1732191075475,-1897.51,0.00041643,18]
[342874238,1732191075484,-1131.28,0.00041643,18]
[342874239,1732191075494,-500.0,0.00041643,18]
[342874240,1732191075504,-3234.69,0.00041643,18]
[342874241,1732191075514,-500.0,0.00041643,18]
[342874242,1732191075523,-500.0,0.00041643,18]
[342874243,1732191075533,-1141.75,0.00041643,18]
[342874244,1732191075543,-764.9,0.00041643,18]
[342874245,1732191075552,-500.0,0.00041643,18]
[342874246,1732191075562,-1881.36,0.00041643,18]
[342874247,1732191075571,-500.0,0.00041643,18]
[342874248,1732191075580,-500.0,0.00041643,18]
[342874249,1732191075590,-701.88,0.00041643,18]
[342874250,1732191075600,-1786.22,0.00041643,18]
[342874251,1732191075612,-917.21,0.00041643,18]
[342874252,1732191075622,-522.5,0.00041643,18]
[342874253,1732191075632,-5276.31,0.00041643,18]
[342874254,1732191075641,-667.39,0.00041643,18]
[342874255,1732191075653,-695.5,0.00041643,18]
[342874256,1732191075662,-1083.07,0.00041643,18]
[342874257,1732191075672,-947.55,0.00041643,18]
[342874258,1732191075682,-500.0,0.00041643,18]
[342874259,1732191075691,-1153.93,0.00041643,18]
[342874260,1732191075700,-500.0,0.00041643,18]
[342874261,1732191075710,-1128.35,0.00041643,18]
[342874262,1732191075719,-5493.63,0.00041643,18]
[342874263,1732191075729,-500.0,0.00041643,18]
[342874264,1732191075738,-531.95,0.00041643,18]
[342874265,1732191075747,-500.0,0.00041643,18]
[342874266,1732191075757,-1181.43,0.00041643,18]
[342874267,1732191075766,-1117.88,0.00041643,18]
[342874268,1732191075775,-1859.5,0.00041643,18]
[342874269,1732191075784,-1554.92,0.00041643,18]
[342874270,1732191075793,-500.0,0.00041643,18]
[342874271,1732191075803,-28642.13,0.00041643,18]
[342874272,1732191075813,-772.67,0.00041643,18]
[342874273,1732191075822,-500.0,0.00041643,18]
[342874274,1732191075831,-1091.78,0.00041643,18]
[342874275,1732191075841,-4438.03,0.00041643,18]
[342874276,1732191075851,-500.0,0.00041643,18]
[342874277,1732191075862,-3310.48,0.00041643,18]
[342874278,1732191075873,-1442.82,0.00041643,18]
[342874279,1732191075882,-1211.34,0.00041643,18]
[342874280,1732191075892,-780.76,0.00041643,18]
[342874281,1732191075901,-500.0,0.00041643,18]
[342874282,1732191075911,-500.0,0.00041643,18]
[342874283,1732191075921,-500.0,0.00041643,18]
[342874284,1732191075930,-500.0,0.00041643,18]
[342874285,1732191075940,-500.0,0.00041643,18]
[342874286,1732191075950,-2703.44,0.00041643,18]
[342874287,1732191075959,-1087.66,0.00041643,18]
[342874288,1732191075968,-578.03754028,0.00041643,18]
[342874289,1732191075978,-500.0,0.00041643,18]
[342874290,1732191075987,-677.74,0.00041643,18]
[342874291,1732191075996,-500.0,0.00041643,18]
[342874292,1732191076005,-500.0,0.00041643,18]
[342874293,1732191076015,-500.0,0.00041643,18]
[342874294,1732191076024,-500.0,0.00041643,18]
[342874295,1732191076033,-500.0,0.00041643,18]
[342874296,1732191076043,-1473.9,0.00041643,18]
[342874297,1732191076052,-500.0,0.00041643,18]
[342874298,1732191076061,-500.0,0.00041643,18]
[342874299,1732191076071,-1559.25,0.00041643,18]
[342874300,1732191076080,-784.71,0.00041643,18]
[342874301,1732191076089,-3822.14,0.00041643,18]
[342874302,1732191076099,-500.0,0.00041643,18]
[342874303,1732191076109,-863.55,0.00041643,18]
[342874304,1732191076119,-500.0,0.00041643,18]
[342874305,1732191076129,-2128.78,0.00041643,18]
[342874306,1732191076138,-2107.31,0.00041643,18]
[342874307,1732191076148,-500.0,0.00041643,18]
[342874308,1732191076157,-500.0,0.00041643,18]
[342874309,1732191076167,-1838.09,0.00041643,18]
[342874310,1732191076176,-1350.13,0.00041643,18]
[342874311,1732191076186,-500.0,0.00041643,18]
[342874312,1732191076196,-500.0,0.00041643,18]
[342874313,1732191076206,-3867.41,0.00041643,18]
[342874314,1732191076215,-152.52728504,0.00041643,18]
[342874315,1732191076226,-520.42316805,0.00041643,18]
[342874316,1732191076236,-2697.41,0.00041643,18]
[342874317,1732191076246,-500.0,0.00041643,18]
[342874318,1732191076256,-3295.78,0.00041643,18]
[342874319,1732191076265,-500.0,0.00041643,18]
[342874320,1732191076275,-718.71,0.00041643,18]
[342874321,1732191076289,-2926.81,0.00041643,18]
[342874322,1732191076298,-500.0,0.00041643,18]
[342874323,1732191076308,-500.0,0.00041643,18]
[342874324,1732191076317,-577.22,0.00041643,18]
[342874325,1732191076329,-500.0,0.00041643,18]
[342874326,1732191076338,-1064.06,0.00041643,18]
[342874327,1732191076348,-1197.49,0.00041643,18]
[342874328,1732191076357,-1009.74,0.00041643,18]
[342874329,1732191076366,-4330.34,0.00041643,18]
[342874330,1732191076375,-1471.96,0.00041643,18]
[342874331,1732191076385,-6560.59,0.00041643,18]
[342874332,1732191076394,-3927.28,0.00041643,18]
[342874333,1732191076404,-500.0,0.00041643,18]
[342874334,1732191076414,-1771.65,0.00041643,18]
[342874335,1732191076423,-2694.07,0.00041643,18]
[342874336,1732191076433,-1012.14,0.00041643,18]
[342874337,1732191076442,-500.0,0.00041643,18]
[342874338,1732191076452,-712.49,0.00041643,18]
[342874339,1732191076462,-505.93,0.00041643,18]
[342874340,1732191076472,-500.0,0.00041643,18]
[342874341,1732191076481,-500.0,0.00041643,18]
[342874342,1732191076491,-1933.02,0.00041643,18]
[342874343,1732191076500,-684.26,0.00041643,18]
[342874344,1732191076509,-890.59,0.00041643,18]
[342874345,1732191076519,-1383.85,0.00041643,18]
[342874346,1732191076529,-500.0,0.00041643,18]
[342874347,1732191076538,-500.0,0.00041643,18]
[342874348,1732191076548,-546.92,0.00041643,18]
[342874349,1732191076558,-548.79,0.00041643,18]
[342874350,1732191076567,-500.0,0.00041643,18]
[342874351,1732191076578,-9944.36,0.00041643,18]
[342874352,1732191076587,-1092.83,0.00041643,18]
[342874353,1732191076596,-3022.52,0.00041643,18]
[342874354,1732191076606,-628.62,0.00041643,18]
[342874355,1732191076618,-9812.49,0.00041643,18]
[342874356,1732191076627,-625.87,0.00041643,18]
[342874357,1732191076637,-500.0,0.00041643,18]
[342874358,1732191076646,-500.0,0.00041643,18]
[342874359,1732191076656,-2889.87,0.00041643,18]
[342874360,1732191076665,-876.62,0.00041643,18]
[342874361,1732191076674,-500.0,0.00041643,18]
[342874362,1732191076684,-500.0,0.00041643,18]
[342874363,1732191076695,-500.0,0.00041643,18]
[342874364,1732191076704,-638.97,0.00041643,18]
[342874365,1732191076714,-3758.42,0.00041643,18]
[342874366,1732191076724,-713.38,0.00041643,18]
[342874367,1732191076734,-500.0,0.00041643,18]
[342874368,1732191076743,-1054.34,0.00041643,18]
[342874369,1732191076753,-2111.22,0.00041643,18]
[342874370,1732191076762,-1023.72,0.00041643,7]
[342874371,1732191076772,-500.0,0.00041643,18]
[342874372,1732191076781,-616.03,0.00041643,18]
[342874373,1732191076791,-500.0,0.00041643,18]
[342874374,1732191076800,-500.0,0.00041643,18]
[342874375,1732191076810,-856.02,0.00041643,18]
[342874376,1732191076820,-161.41548152,0.00041643,18]
[342874377,1732191076830,-11002.05,0.00041643,18]
[342874378,1732191076839,-1492.62,0.00041643,18]
[342874379,1732191076849,-4076.9,0.00041643,18]
[342874380,1732191076860,-731.6,0.00041643,18]
[342874381,1732191076869,-503.13,0.00041643,18]
[342874382,1732191076878,-1000.0,0.00041643,5]
[342874383,1732191076887,-1216.73,0.00041643,18]
[342874384,1732191076897,-500.0,0.00041643,18]
[342874385,1732191076906,-5320.84,0.00041643,18]
[342874386,1732191076916,-500.0,0.00041643,18]
[342874387,1732191076926,-568.54,0.00041643,18]
[342874388,1732191076935,-12057.03,0.00041643,18]
[342874389,1732191076945,-500.0,0.00041643,18]
[342874390,1732191076955,-933.93,0.00041643,18]
[342874391,1732191076964,-545.26,0.00041643,18]
[342874392,1732191076973,-2278.97,0.00041643,18]
[342874393,1732191076982,-535.06,0.00041643,18]
[342874394,1732191076991,-789.08,0.00041643,18]
[342874395,1732191077001,-500.0,0.00041643,2]
[342874396,1732191077010,-1241.7,0.00041643,18]
[342874397,1732191077020,-500.0,0.00041643,18]
[342874398,1732191077029,-500.0,0.00041643,18]
[342874399,1732191077038,-7669.61,0.00041643,18]
[342874400,1732191077047,-516.52,0.00041643,18]
[342874401,1732191077056,-2437.26,0.00041643,18]
[342874402,1732191077066,-500.96,0.00041643,18]
[342874403,1732191077075,-329.785496,0.00041643,18]
[342874404,1732191077084,-764.41,0.00041644,30]
[342874405,1732191077093,-764.41,0.00041644,30]
[342874406,1732191077102,-764.41,0.00041644,30]
[342874407,1732191077115,-764.41,0.00041644,30]
[342874408,1732191077125,-764.41,0.00041644,30]
[342874409,1732191077134,-764.41,0.00041644,30]
[342874410,1732191077143,-764.41,0.00041644,30]
[342874411,1732191077152,-764.41,0.00041644,30]
[342874412,1732191077161,-764.41,0.00041644,30]
[342874413,1732191077171,-200.61206984,0.00041645,28]